Workbook

Sheet Лист1
A1: Школа | C1: МКОУ СОШ №10 пгт. Верхние Серги | F1: Утвердил: | G1: должность | H1: директор ООО "Комбинат школьного питания"
A2: Типовое примерное меню приготавливаемых блюд | G2: фамилия | H2: И.А. Горелова
A3: Возрастная категория | E3: 7-11 лет | G3: дата | H3: 2026-01-12
A5: Неделя | B5: День недели | C5: Прием пищи | D5: Раздел меню | E5: Блюда | F5: Вес блюда, г | G5: Белки | H5: Жиры | I5: Углеводы | J5: Калорийность | K5: № рецептуры | L5: Цена
A6: 1 | B6: 1 | C6: Завтрак
D7: гор.блюдо | E7: Каша пшенная молочная с маслом сливочным | F7: 200 | G7: 6.54 | H7: 6.6 | I7: 32.56 | J7: 214.261666 | K7: 11/4 | L7: 52.45
E8: Сыр (порциями) | F8: 30 | G8: 7.89 | H8: 7.98 | I8: 0 | J8: 105.18 | K8: 4/13 | L8: 39
D9: гор.напиток | E9: Чай с лимоном | F9: 200 | G9: 0.23 | H9: 0.05 | I9: 14.68 | J9: 57.68395551 | K9: 29/10 | L9: 19
D10: хлеб | E10: Хлеб пшеничный | F10: 30 | G10: 1.98 | H10: 0.2 | I10: 14.07 | J10: 67.1703 | K10: - | L10: 4.8
D11: хлеб | E11: Хлеб ржаной | F11: 40 | G11: 2.64 | H11: 0.48 | I11: 16.68 | J11: 77.35 | K11: - | L11: 7.4
D15: итого | F15: 500 | G15: =IF(SUM(G6:G14)>0,SUM(G6:G14),"") -> 19.28 | H15: =IF(SUM(H6:H14)>0,SUM(H6:H14),"") -> 15.31 | I15: =IF(SUM(I6:I14)>0,SUM(I6:I14),"") -> 77.99 | J15: =IF(SUM(J6:J14)>0,SUM(J6:J14),"") -> 521.6459215 | L15: =IF(SUM(L6:L14)>0,SUM(L6:L14),"") -> 122.65
A16: =A6 -> 1 | B16: =B6 -> 1 | C16: Завтрак 2 | D16: .
D18: итого | G18: =IF(SUM(G16:G17)>0,SUM(G16:G17),"") ->  | H18: =IF(SUM(H16:H17)>0,SUM(H16:H17),"") ->  | I18: =IF(SUM(I16:I17)>0,SUM(I16:I17),"") ->  | J18: =IF(SUM(J16:J17)>0,SUM(J16:J17),"") ->  | L18: =IF(SUM(L16:L17)>0,SUM(L16:L17),"") -> 
A19: =A16 -> 1 | B19: =B16 -> 1 | C19: Обед
D20: 1 блюдо | E20: Суп картофельный с бобовыми | F20: 200 | G20: 4.82 | H20: 4.39 | I20: 19.16 | J20: 131.26 | K20: 16/2 | L20: 21.65
D21: 2 блюдо | E21: Рыба тушенная с овощами, минтай | F21: 90 | G21: 8.72 | H21: 4.7 | I21: 4.45 | J21: 108.92 | K21: 4/7 | L21: 65.96
D22: гарнир | E22: Макаронные изделия отварные | F22: 150 | G22: 5.3 | H22: 2.98 | I22: 34.11 | J22: 233 | K22: 46/3 | L22: 24.62
D23: напиток | E23: Чай с лимоном | F23: 200 | G23: 0.23 | H23: 0.05 | I23: 14.68 | J23: 57.68395551 | K23: 29/10 | L23: 19
D24: хлеб бел. | E24: Хлеб пшеничный | F24: 30 | G24: 1.98 | H24: 0.2 | I24: 14.07 | J24: 67.1703 | K24: - | L24: 4.8
D25: хлеб черн. | E25: Хлеб ржаной | F25: 20 | G25: 1.32 | H25: 0.24 | I25: 8.34 | J25: 38.68 | K25: - | L25: 3.7
D26: кисломол | E26: Сыр (порциями) | F26: 20 | G26: 5.26 | H26: 5.32 | I26: 0 | J26: 70.12 | K26: 4/13 | L26: 32
D28: итого | F28: 710 | G28: =IF(SUM(G19:G27)>0,SUM(G19:G27),"") -> 27.63 | H28: =IF(SUM(H19:H27)>0,SUM(H19:H27),"") -> 17.88 | I28: =IF(SUM(I19:I27)>0,SUM(I19:I27),"") -> 94.81 | J28: =IF(SUM(J19:J27)>0,SUM(J19:J27),"") -> 706.8342555 | L28: =IF(SUM(L19:L27)>0,SUM(L19:L27),"") -> 171.73
A29: =A19 -> 1 | B29: =B19 -> 1 | C29: Полдник | D29: .
D33: итого | G33: =IF(SUM(G29:G32)>0,SUM(G29:G32),"") ->  | H33: =IF(SUM(H29:H32)>0,SUM(H29:H32),"") ->  | I33: =IF(SUM(I29:I32)>0,SUM(I29:I32),"") ->  | J33: =IF(SUM(J29:J32)>0,SUM(J29:J32),"") ->  | L33: =IF(SUM(L29:L32)>0,SUM(L29:L32),"") -> 
A34: =A29 -> 1 | B34: =B29 -> 1 | C34: Ужин | D34: гор.блюдо
D35: гарнир
D36: напиток
D37: хлеб бел.
D38: хлеб черн.
D41: итого | G41: =IF(SUM(G34:G40)>0,SUM(G34:G40),"") ->  | H41: =IF(SUM(H34:H40)>0,SUM(H34:H40),"") ->  | I41: =IF(SUM(I34:I40)>0,SUM(I34:I40),"") ->  | J41: =IF(SUM(J34:J40)>0,SUM(J34:J40),"") ->  | L41: =IF(SUM(L34:L40)>0,SUM(L34:L40),"") -> 
A42: =A34 -> 1 | B42: =B34 -> 1 | C42: Ужин 2 | D42: напиток
D44: итого | G44: =IF(SUM(G42:G43)>0,SUM(G42:G43),"") ->  | H44: =IF(SUM(H42:H43)>0,SUM(H42:H43),"") ->  | I44: =IF(SUM(I42:I43)>0,SUM(I42:I43),"") ->  | J44: =IF(SUM(J42:J43)>0,SUM(J42:J43),"") ->  | L44: =IF(SUM(L42:L43)>0,SUM(L42:L43),"") -> 
A45: =A6 -> 1 | B45: =B6 -> 1 | C45: Итого за день: | G45: =SUM(G6:G44)/2 -> 46.91 | H45: =SUM(H6:H44)/2 -> 33.19 | I45: =SUM(I6:I44)/2 -> 172.8 | J45: =SUM(J6:J44)/2 -> 1228.480177 | L45: =SUM(L6:L44)/2 -> 294.38
A46: 1 | B46: 2 | C46: Завтрак | D46: закуска | E46: Огурец соленый | F46: 60 | G46: 0.47 | H46: 0.06 | I46: 1.47 | J46: 8.4 | K46: - | L46: 10.82
D47: гор.блюдо | E47: Бефсроганов из филе курицы | F47: 90 | G47: 17.19 | H47: 6.32 | I47: 5.94 | J47: 198.76 | K47: 7/8 | L47: 74.77
D48: гор.блюдо | E48: Рис отварной | F48: 150 | G48: 4.16 | H48: 5.89 | I48: 37.69 | J48: 220.93 | K48: 54-6г-2020 | L48: 22.56
D49: гор.напиток | E49: Чай с сахаром | F49: 200 | G49: 0.08 | H49: 0.02 | I49: 9.84 | J49: 37.8 | K49: 27/10 | L49: 6
D50: хлеб | E50: Хлеб пшеничный | F50: 30 | G50: 1.98 | H50: 0.2 | I50: 14.07 | J50: 67.1703 | K50: - | L50: 4.8
D51: хлеб | E51: Хлеб ржаной | F51: 20 | G51: 1.32 | H51: 0.24 | I51: 8.34 | J51: 38.68 | K51: - | L51: 3.7
D54: итого | F54: 550 | G54: =IF(SUM(G46:G53)>0,SUM(G46:G53),"") -> 25.2 | H54: =IF(SUM(H46:H53)>0,SUM(H46:H53),"") -> 12.73 | I54: =IF(SUM(I46:I53)>0,SUM(I46:I53),"") -> 77.35 | J54: =IF(SUM(J46:J53)>0,SUM(J46:J53),"") -> 571.7403 | L54: =IF(SUM(L46:L53)>0,SUM(L46:L53),"") -> 122.65
A55: =A46 -> 1 | B55: =B46 -> 2 | C55: Завтрак 2 | D55: .
D57: итого | G57: =IF(SUM(G55:G56)>0,SUM(G55:G56),"") ->  | H57: =IF(SUM(H55:H56)>0,SUM(H55:H56),"") ->  | I57: =IF(SUM(I55:I56)>0,SUM(I55:I56),"") ->  | J57: =IF(SUM(J55:J56)>0,SUM(J55:J56),"") ->  | L57: =IF(SUM(L55:L56)>0,SUM(L55:L56),"") -> 
A58: =A55 -> 1 | B58: =B55 -> 2 | C58: Обед | D58: закуска | E58: Огурец соленый | F58: 60 | G58: 0.47 | H58: 0.06 | I58: 1.47 | J58: 8.4 | K58: - | L58: 10.82
D59: 1 блюдо | E59: Суп картофельный с макаронными изделиями | F59: 200 | G59: 2.56 | H59: 1.96 | I59: 18.88 | J59: 133.91 | K59: 18/2 | L59: 49.08
D60: 2 блюдо | E60: Бефсроганов из филе курицы | F60: 90 | G60: 17.19 | H60: 6.32 | I60: 5.94 | J60: 198.76 | K60: 7/8 | L60: 74.77
D61: гарнир | E61: Рис отварной | F61: 150 | G61: 4.16 | H61: 5.89 | I61: 37.69 | J61: 220.93 | K61: 54-6г-2020 | L61: 22.56
D62: напиток | E62: Чай с сахаром | F62: 200 | G62: 0.08 | H62: 0.02 | I62: 9.84 | J62: 37.8 | K62: 27/10 | L62: 6
D63: хлеб бел. | E63: Хлеб пшеничный | F63: 30 | G63: 1.98 | H63: 0.2 | I63: 14.07 | J63: 67.1703 | K63: - | L63: 4.8
D64: хлеб черн. | E64: Хлеб ржаной | F64: 20 | G64: 1.32 | H64: 0.24 | I64: 8.34 | J64: 38.68 | K64: - | L64: 3.7
D67: итого | F67: 750 | G67: =IF(SUM(G58:G66)>0,SUM(G58:G66),"") -> 27.76 | H67: =IF(SUM(H58:H66)>0,SUM(H58:H66),"") -> 14.69 | I67: =IF(SUM(I58:I66)>0,SUM(I58:I66),"") -> 96.23 | J67: =IF(SUM(J58:J66)>0,SUM(J58:J66),"") -> 705.6503 | L67: =IF(SUM(L58:L66)>0,SUM(L58:L66),"") -> 171.73
A68: =A58 -> 1 | B68: =B58 -> 2 | C68: Полдник | D68: .
D72: итого | G72: =IF(SUM(G68:G71)>0,SUM(G68:G71),"") ->  | H72: =IF(SUM(H68:H71)>0,SUM(H68:H71),"") ->  | I72: =IF(SUM(I68:I71)>0,SUM(I68:I71),"") ->  | J72: =IF(SUM(J68:J71)>0,SUM(J68:J71),"") ->  | L72: =IF(SUM(L68:L71)>0,SUM(L68:L71),"") -> 
A73: =A68 -> 1 | B73: =B68 -> 2 | C73: Ужин | D73: гор.блюдо
D74: гарнир
D75: напиток
D76: хлеб бел.
D77: хлеб черн.
D80: итого | G80: =IF(SUM(G73:G79)>0,SUM(G73:G79),"") ->  | H80: =IF(SUM(H73:H79)>0,SUM(H73:H79),"") ->  | I80: =IF(SUM(I73:I79)>0,SUM(I73:I79),"") ->  | J80: =IF(SUM(J73:J79)>0,SUM(J73:J79),"") ->  | L80: =IF(SUM(L73:L79)>0,SUM(L73:L79),"") -> 
A81: =A73 -> 1 | B81: =B73 -> 2 | C81: Ужин 2 | D81: напиток
D83: итого | G83: =IF(SUM(G81:G82)>0,SUM(G81:G82),"") ->  | H83: =IF(SUM(H81:H82)>0,SUM(H81:H82),"") ->  | I83: =IF(SUM(I81:I82)>0,SUM(I81:I82),"") ->  | J83: =IF(SUM(J81:J82)>0,SUM(J81:J82),"") ->  | L83: =IF(SUM(L81:L82)>0,SUM(L81:L82),"") -> 
A84: =A46 -> 1 | B84: =B46 -> 2 | C84: Итого за день: | G84: =SUM(G46:G83)/2 -> 52.96 | H84: =SUM(H46:H83)/2 -> 27.42 | I84: =SUM(I46:I83)/2 -> 173.58 | J84: =SUM(J46:J83)/2 -> 1277.3906 | L84: =SUM(L46:L83)/2 -> 294.38
A85: 1 | B85: 3 | C85: Завтрак | D85: 2 блюдо | E85: Запеканка (сырники) из творога | F85: 200 | G85: 33.8 | H85: 19.2 | I85: 26.86 | J85: 418.51 | K85: 8/5 | L85: 71.9
D86: сладкое | E86: Молоко сгущенное | F86: 15 | G86: 1.08 | H86: 1.28 | I86: 8.33 | J86: 47.61 | K86: - | L86: 7
D87: гор.напиток | E87: Чай с лимоном | F87: 200 | G87: 0.23 | H87: 0.05 | I87: 14.68 | J87: 57.68395551 | K87: 29/10 | L87: 9
D88: фрукты | E88: Фрукты | F88: 125 | G88: 0.5 | H88: 0.5 | I88: 14.5 | J88: 60.85 | K88: - | L88: 26.25
D89: хлеб | E89: Хлеб пшеничный | F89: 30 | G89: 1.98 | H89: 0.2 | I89: 14.07 | J89: 67.1703 | K89: - | L89: 4.8
D90: хлеб | E90: Хлеб ржаной | F90: 20 | G90: 1.32 | H90: 0.24 | I90: 8.34 | J90: 38.68 | K90: - | L90: 3.7
D92: итого | F92: 590 | G92: =IF(SUM(G85:G91)>0,SUM(G85:G91),"") -> 38.91 | H92: =IF(SUM(H85:H91)>0,SUM(H85:H91),"") -> 21.47 | I92: =IF(SUM(I85:I91)>0,SUM(I85:I91),"") -> 86.78 | J92: =IF(SUM(J85:J91)>0,SUM(J85:J91),"") -> 690.5042555 | L92: =IF(SUM(L85:L91)>0,SUM(L85:L91),"") -> 122.65
A93: =A85 -> 1 | B93: =B85 -> 3 | C93: Завтрак 2 | D93: .
D95: итого | G95: =IF(SUM(G93:G94)>0,SUM(G93:G94),"") ->  | H95: =IF(SUM(H93:H94)>0,SUM(H93:H94),"") ->  | I95: =IF(SUM(I93:I94)>0,SUM(I93:I94),"") ->  | J95: =IF(SUM(J93:J94)>0,SUM(J93:J94),"") ->  | L95: =IF(SUM(L93:L94)>0,SUM(L93:L94),"") -> 
A96: =A93 -> 1 | B96: =B93 -> 3 | C96: Обед | D96: закуска | E96: Гренки(сухарики) | F96: 30 | G96: 2.57 | H96: 0.25 | I96: 16.97 | J96: 80.61 | K96: 40/2 | L96: 5.5
D97: 1 блюдо | E97: Суп-пюре из картофеля | F97: 200 | G97: 2.56 | H97: 2.93 | I97: 13.41 | J97: 89.07 | K97: 29/2 | L97: 43.58
D98: 2 блюдо | E98: Запеканка (сырники) из творога | F98: 200 | G98: 33.8 | H98: 19.2 | I98: 26.86 | J98: 418.51 | K98: 8/5 | L98: 71.9
D99: сладкое | E99: Молоко сгущенное | F99: 15 | G99: 1.08 | H99: 1.28 | I99: 8.33 | J99: 47.61 | K99: - | L99: 7
D100: напиток | E100: Чай с лимоном | F100: 200 | G100: 0.23 | H100: 0.05 | I100: 14.68 | J100: 57.68395551 | K100: 29/10 | L100: 9
D101: хлеб бел. | E101: Хлеб пшеничный | F101: 30 | G101: 1.98 | H101: 0.2 | I101: 14.07 | J101: 67.1703 | K101: - | L101: 4.8
D102: хлеб черн. | E102: Хлеб ржаной | F102: 20 | G102: 1.32 | H102: 0.24 | I102: 8.34 | J102: 38.68 | K102: - | L102: 3.7
E103: Фрукты | F103: 125 | G103: 0.5 | H103: 0.5 | I103: 14.5 | J103: 60.85 | L103: 26.25
D105: итого | F105: 820 | G105: =IF(SUM(G96:G104)>0,SUM(G96:G104),"") -> 44.04 | H105: =IF(SUM(H96:H104)>0,SUM(H96:H104),"") -> 24.65 | I105: =IF(SUM(I96:I104)>0,SUM(I96:I104),"") -> 117.16 | J105: =IF(SUM(J96:J104)>0,SUM(J96:J104),"") -> 860.1842555 | L105: =IF(SUM(L96:L104)>0,SUM(L96:L104),"") -> 171.73
A106: =A96 -> 1 | B106: =B96 -> 3 | C106: Полдник | D106: .
D110: итого | G110: =IF(SUM(G106:G109)>0,SUM(G106:G109),"") ->  | H110: =IF(SUM(H106:H109)>0,SUM(H106:H109),"") ->  | I110: =IF(SUM(I106:I109)>0,SUM(I106:I109),"") ->  | J110: =IF(SUM(J106:J109)>0,SUM(J106:J109),"") ->  | L110: =IF(SUM(L106:L109)>0,SUM(L106:L109),"") -> 
A111: =A106 -> 1 | B111: =B106 -> 3 | C111: Ужин | D111: гор.блюдо
D112: гарнир
D113: напиток
D114: хлеб бел.
D115: хлеб черн.
D118: итого | G118: =IF(SUM(G111:G117)>0,SUM(G111:G117),"") ->  | H118: =IF(SUM(H111:H117)>0,SUM(H111:H117),"") ->  | I118: =IF(SUM(I111:I117)>0,SUM(I111:I117),"") ->  | J118: =IF(SUM(J111:J117)>0,SUM(J111:J117),"") ->  | L118: =IF(SUM(L111:L117)>0,SUM(L111:L117),"") -> 
A119: =A111 -> 1 | B119: =B111 -> 3 | C119: Ужин 2 | D119: напиток
D121: итого | G121: =IF(SUM(G119:G120)>0,SUM(G119:G120),"") ->  | H121: =IF(SUM(H119:H120)>0,SUM(H119:H120),"") ->  | I121: =IF(SUM(I119:I120)>0,SUM(I119:I120),"") ->  | J121: =IF(SUM(J119:J120)>0,SUM(J119:J120),"") ->  | L121: =IF(SUM(L119:L120)>0,SUM(L119:L120),"") -> 
A122: =A85 -> 1 | B122: =B85 -> 3 | C122: Итого за день: | G122: =SUM(G85:G121)/2 -> 82.95 | H122: =SUM(H85:H121)/2 -> 46.12 | I122: =SUM(I85:I121)/2 -> 203.94 | J122: =SUM(J85:J121)/2 -> 1550.688511 | L122: =SUM(L85:L121)/2 -> 294.38
A123: 1 | B123: 4 | C123: Завтрак | D123: гарнир | E123: Макаронные изделия отварные | F123: 150 | G123: 5.3 | H123: 2.98 | I123: 34.11 | J123: 183.94 | K123: 46/3 | L123: 24.68
D124: гор.блюдо | E124: Гуляш из мяса свинины | F124: 90 | G124: 11.14 | H124: 29.38 | I124: 4.83 | J124: 327.3003 | K124: 12/8 | L124: 81.87
D125: гор.напиток | E125: Чай с сахаром | F125: 200 | G125: 0.08 | H125: 0.02 | I125: 9.84 | J125: 37.802232 | K125: 27/10 | L125: 6
D126: хлеб | E126: Хлеб пшеничный | F126: 40 | G126: 2.64 | H126: 0.26 | I126: 18.76 | J126: 89.56 | K126: - | L126: 6.4
D127: хлеб | E127: Хлеб ржаной | F127: 20 | G127: 1.32 | H127: 0.24 | I127: 8.34 | J127: 38.68 | K127: - | L127: 3.7
D130: итого | F130: 500 | G130: =IF(SUM(G123:G129)>0,SUM(G123:G129),"") -> 20.48 | H130: =IF(SUM(H123:H129)>0,SUM(H123:H129),"") -> 32.88 | I130: =IF(SUM(I123:I129)>0,SUM(I123:I129),"") -> 75.88 | J130: =IF(SUM(J123:J129)>0,SUM(J123:J129),"") -> 677.282532 | L130: =IF(SUM(L123:L129)>0,SUM(L123:L129),"") -> 122.65
A131: =A123 -> 1 | B131: =B123 -> 4 | C131: Завтрак 2 | D131: .
D133: итого | G133: =IF(SUM(G131:G132)>0,SUM(G131:G132),"") ->  | H133: =IF(SUM(H131:H132)>0,SUM(H131:H132),"") ->  | I133: =IF(SUM(I131:I132)>0,SUM(I131:I132),"") ->  | J133: =IF(SUM(J131:J132)>0,SUM(J131:J132),"") ->  | L133: =IF(SUM(L131:L132)>0,SUM(L131:L132),"") -> 
A134: =A131 -> 1 | B134: =B131 -> 4 | C134: Обед | D134: закуска
D135: 1 блюдо | E135: Рассольник с крупой и сметаной | F135: 200 | G135: 1.97 | H135: 4.34 | I135: 15.02 | J135: 104.96 | K135: 11/2 | L135: 40.08
D136: 2 блюдо | E136: Гуляш из мяса свинины | F136: 90 | G136: 11.14 | H136: 29.38 | I136: 4.83 | J136: 327.3003 | K136: 12/8 | L136: 81.87
D137: гарнир | E137: Макаронные изделия отварные | F137: 150 | G137: 5.3 | H137: 2.98 | I137: 34.11 | J137: 183.94 | K137: 46/3 | L137: 24.68
D138: напиток | E138: Сок | F138: 200 | G138: 1 | H138: 0.2 | I138: 20.6 | J138: 86.48 | L138: 15
D139: хлеб бел. | E139: Хлеб пшеничный | F139: 40 | G139: 2.64 | H139: 0.26 | I139: 18.76 | J139: 89.56 | K139: - | L139: 6.4
D140: хлеб черн. | E140: Хлеб ржаной | F140: 20 | G140: 1.32 | H140: 0.24 | I140: 8.34 | J140: 38.68 | K140: - | L140: 3.7
D143: итого | F143: 700 | G143: =IF(SUM(G134:G142)>0,SUM(G134:G142),"") -> 23.37 | H143: =IF(SUM(H134:H142)>0,SUM(H134:H142),"") -> 37.4 | I143: =IF(SUM(I134:I142)>0,SUM(I134:I142),"") -> 101.66 | J143: =IF(SUM(J134:J142)>0,SUM(J134:J142),"") -> 830.9203 | L143: =IF(SUM(L134:L142)>0,SUM(L134:L142),"") -> 171.73
A144: =A134 -> 1 | B144: =B134 -> 4 | C144: Полдник | D144: .
D148: итого | G148: =IF(SUM(G144:G147)>0,SUM(G144:G147),"") ->  | H148: =IF(SUM(H144:H147)>0,SUM(H144:H147),"") ->  | I148: =IF(SUM(I144:I147)>0,SUM(I144:I147),"") ->  | J148: =IF(SUM(J144:J147)>0,SUM(J144:J147),"") ->  | L148: =IF(SUM(L144:L147)>0,SUM(L144:L147),"") -> 
A149: =A144 -> 1 | B149: =B144 -> 4 | C149: Ужин | D149: гор.блюдо
D150: гарнир
D151: напиток
D152: хлеб бел.
D153: хлеб черн.
D156: итого | G156: =IF(SUM(G149:G155)>0,SUM(G149:G155),"") ->  | H156: =IF(SUM(H149:H155)>0,SUM(H149:H155),"") ->  | I156: =IF(SUM(I149:I155)>0,SUM(I149:I155),"") ->  | J156: =IF(SUM(J149:J155)>0,SUM(J149:J155),"") ->  | L156: =IF(SUM(L149:L155)>0,SUM(L149:L155),"") -> 
A157: =A149 -> 1 | B157: =B149 -> 4 | C157: Ужин 2 | D157: напиток
D159: итого | G159: =IF(SUM(G157:G158)>0,SUM(G157:G158),"") ->  | H159: =IF(SUM(H157:H158)>0,SUM(H157:H158),"") ->  | I159: =IF(SUM(I157:I158)>0,SUM(I157:I158),"") ->  | J159: =IF(SUM(J157:J158)>0,SUM(J157:J158),"") ->  | L159: =IF(SUM(L157:L158)>0,SUM(L157:L158),"") -> 
A160: =A123 -> 1 | B160: =B123 -> 4 | C160: Итого за день: | G160: =SUM(G123:G159)/2 -> 43.85 | H160: =SUM(H123:H159)/2 -> 70.28 | I160: =SUM(I123:I159)/2 -> 177.54 | J160: =SUM(J123:J159)/2 -> 1508.202832 | L160: =SUM(L123:L159)/2 -> 294.38
A161: 1 | B161: 5 | C161: Завтрак | D161: гор.блюдо | E161: Рагу из мяса кур | F161: 230 | G161: 22.72 | H161: 25.08 | I161: 24.53 | J161: 412.07 | K161: 3/9 | L161: 87.7
D162: гор.напиток | E162: Кофейный напиток с молоком | F162: 200 | G162: 2.84 | H162: 3.19 | I162: 14.83 | J162: 95.89 | K162: 32/10 | L162: 23
D163: хлеб | E163: Хлеб пшеничный | F163: 40 | G163: 2.64 | H163: 0.26 | I163: 18.76 | J163: 89.56 | K163: - | L163: 6.4
D164: хлеб | E164: Хлеб ржаной | F164: 30 | G164: 1.98 | H164: 0.36 | I164: 12.51 | J164: 58.01 | K164: - | L164: 5.55
D166: итого | F166: 500 | G166: =IF(SUM(G161:G165)>0,SUM(G161:G165),"") -> 30.18 | H166: =IF(SUM(H161:H165)>0,SUM(H161:H165),"") -> 28.89 | I166: =IF(SUM(I161:I165)>0,SUM(I161:I165),"") -> 70.63 | J166: =IF(SUM(J161:J165)>0,SUM(J161:J165),"") -> 655.53 | L166: =IF(SUM(L161:L165)>0,SUM(L161:L165),"") -> 122.65
A167: =A161 -> 1 | B167: =B161 -> 5 | C167: Завтрак 2 | D167: .
D169: итого | G169: =IF(SUM(G167:G168)>0,SUM(G167:G168),"") ->  | H169: =IF(SUM(H167:H168)>0,SUM(H167:H168),"") ->  | I169: =IF(SUM(I167:I168)>0,SUM(I167:I168),"") ->  | J169: =IF(SUM(J167:J168)>0,SUM(J167:J168),"") ->  | L169: =IF(SUM(L167:L168)>0,SUM(L167:L168),"") -> 
A170: =A167 -> 1 | B170: =B167 -> 5 | C170: Обед | D170: закуска
D171: 1 блюдо | E171: Суп картофельный с макаронными изделиями | F171: 200 | G171: 2.56 | H171: 1.96 | I171: 18.88 | J171: 101.91 | K171: 18/2 | L171: 49.2
D172: 2 блюдо | E172: Рагу из мяса кур | F172: 230 | G172: 22.72 | H172: 25.08 | I172: 24.53 | J172: 412.07 | K172: 3/9 | L172: 87.7
D173: гарнир
D174: гор.напиток | E174: Кофейный напиток с молоком | F174: 200 | G174: 2.84 | H174: 3.19 | I174: 14.83 | J174: 95.89 | K174: 32/10 | L174: 23
D175: хлеб бел. | E175: Хлеб пшеничный | F175: 45 | G175: 2.98 | H175: 0.3 | I175: 21.11 | J175: 100.76 | K175: - | L175: 7.2
D176: хлеб черн. | E176: Хлеб ржаной | F176: 25 | G176: 1.65 | H176: 0.3 | I176: 10.43 | J176: 48.35 | K176: - | L176: 4.63
D179: итого | F179: 700 | G179: =IF(SUM(G170:G178)>0,SUM(G170:G178),"") -> 32.75 | H179: =IF(SUM(H170:H178)>0,SUM(H170:H178),"") -> 30.83 | I179: =IF(SUM(I170:I178)>0,SUM(I170:I178),"") -> 89.78 | J179: =IF(SUM(J170:J178)>0,SUM(J170:J178),"") -> 758.98 | L179: =IF(SUM(L170:L178)>0,SUM(L170:L178),"") -> 171.73
A180: =A170 -> 1 | B180: =B170 -> 5 | C180: Полдник | D180: .
D184: итого | G184: =IF(SUM(G180:G183)>0,SUM(G180:G183),"") ->  | H184: =IF(SUM(H180:H183)>0,SUM(H180:H183),"") ->  | I184: =IF(SUM(I180:I183)>0,SUM(I180:I183),"") ->  | J184: =IF(SUM(J180:J183)>0,SUM(J180:J183),"") ->  | L184: =IF(SUM(L180:L183)>0,SUM(L180:L183),"") -> 
A185: =A180 -> 1 | B185: =B180 -> 5 | C185: Ужин | D185: гор.блюдо
D186: гарнир
D187: напиток
D188: хлеб бел.
D189: хлеб черн.
D192: итого | G192: =IF(SUM(G185:G191)>0,SUM(G185:G191),"") ->  | H192: =IF(SUM(H185:H191)>0,SUM(H185:H191),"") ->  | I192: =IF(SUM(I185:I191)>0,SUM(I185:I191),"") ->  | J192: =IF(SUM(J185:J191)>0,SUM(J185:J191),"") ->  | L192: =IF(SUM(L185:L191)>0,SUM(L185:L191),"") -> 
A193: =A185 -> 1 | B193: =B185 -> 5 | C193: Ужин 2 | D193: напиток
D195: итого | G195: =IF(SUM(G193:G194)>0,SUM(G193:G194),"") ->  | H195: =IF(SUM(H193:H194)>0,SUM(H193:H194),"") ->  | I195: =IF(SUM(I193:I194)>0,SUM(I193:I194),"") ->  | J195: =IF(SUM(J193:J194)>0,SUM(J193:J194),"") ->  | L195: =IF(SUM(L193:L194)>0,SUM(L193:L194),"") -> 
A196: =A161 -> 1 | B196: =B161 -> 5 | C196: Итого за день: | G196: =SUM(G161:G195)/2 -> 62.93 | H196: =SUM(H161:H195)/2 -> 59.72 | I196: =SUM(I161:I195)/2 -> 160.41 | J196: =SUM(J161:J195)/2 -> 1414.51 | L196: =SUM(L161:L195)/2 -> 294.38
A197: 2 | B197: 1 | C197: Завтрак | D197: гор.блюдо | E197: Каша гречневая рассыпчатая | F197: 150 | G197: 8.3 | H197: 5.56 | I197: 40.2 | J197: 244.8 | K197: 39/3 | L197: 29.34
D198: гор.блюдо | E198: Биточки (котлеты) из мяса кур | F198: 90 | G198: 13.35 | H198: 11.19 | I198: 8.36 | J198: 187.83 | K198: 5/9 | L198: 69.21
D199: гор.напиток | E199: Чай с лимоном | F199: 200 | G199: 0.23 | H199: 0.05 | I199: 14.68 | J199: 57.68395551 | K199: 29/10 | L199: 14
D200: хлеб | E200: Хлеб пшеничный | F200: 40 | G200: 2.64 | H200: 0.26 | I200: 18.76 | J200: 89.5604 | K200: - | L200: 6.4
D201: хлеб | E201: Хлеб ржаной | F201: 20 | G201: 1.32 | H201: 0.24 | I201: 8.34 | J201: 38.68 | K201: - | L201: 3.7
D204: итого | F204: 500 | G204: =IF(SUM(G197:G203)>0,SUM(G197:G203),"") -> 25.84 | H204: =IF(SUM(H197:H203)>0,SUM(H197:H203),"") -> 17.3 | I204: =IF(SUM(I197:I203)>0,SUM(I197:I203),"") -> 90.34 | J204: =IF(SUM(J197:J203)>0,SUM(J197:J203),"") -> 618.5543555 | L204: =IF(SUM(L197:L203)>0,SUM(L197:L203),"") -> 122.65
A205: =A197 -> 2 | B205: =B197 -> 1 | C205: Завтрак 2 | D205: .
D207: итого | G207: =IF(SUM(G205:G206)>0,SUM(G205:G206),"") ->  | H207: =IF(SUM(H205:H206)>0,SUM(H205:H206),"") ->  | I207: =IF(SUM(I205:I206)>0,SUM(I205:I206),"") ->  | J207: =IF(SUM(J205:J206)>0,SUM(J205:J206),"") ->  | L207: =IF(SUM(L205:L206)>0,SUM(L205:L206),"") -> 
A208: =A205 -> 2 | B208: =B205 -> 1 | C208: Обед | D208: закуска
D209: 1 блюдо | E209: Щи из свежей капусты со сметаной | F209: 200 | G209: 1.55 | H209: 2.42 | I209: 8.03 | J209: 57.28 | K209: 6/2 | L209: 38.08
D210: 2 блюдо | E210: Биточки (котлеты) из мяса кур | F210: 90 | G210: 13.35 | H210: 11.19 | I210: 8.36 | J210: 187.83 | K210: 5/9 | L210: 69.21
D211: гарнир | E211: Каша гречневая рассыпчатая | F211: 150 | G211: 8.3 | H211: 5.56 | I211: 40.2 | J211: 244.8 | K211: 39/3 | L211: 29.34
D212: напиток | E212: Компот из кураги | F212: 200 | G212: 1.02 | H212: 0.06 | I212: 23.18 | J212: 87.6 | K212: 6/10 | L212: 25
D213: хлеб бел. | E213: Хлеб пшеничный | F213: 40 | G213: 2.64 | H213: 0.26 | I213: 18.76 | J213: 89.5604 | K213: - | L213: 6.4
D214: хлеб черн. | E214: Хлеб ржаной | F214: 20 | G214: 1.32 | H214: 0.24 | I214: 8.34 | J214: 38.68 | K214: - | L214: 3.7
D217: итого | F217: 700 | G217: =IF(SUM(G208:G216)>0,SUM(G208:G216),"") -> 28.18 | H217: =IF(SUM(H208:H216)>0,SUM(H208:H216),"") -> 19.73 | I217: =IF(SUM(I208:I216)>0,SUM(I208:I216),"") -> 106.87 | J217: =IF(SUM(J208:J216)>0,SUM(J208:J216),"") -> 705.7504 | L217: =IF(SUM(L208:L216)>0,SUM(L208:L216),"") -> 171.73
A218: =A208 -> 2 | B218: =B208 -> 1 | C218: Полдник | D218: .
D222: итого | G222: =IF(SUM(G218:G221)>0,SUM(G218:G221),"") ->  | H222: =IF(SUM(H218:H221)>0,SUM(H218:H221),"") ->  | I222: =IF(SUM(I218:I221)>0,SUM(I218:I221),"") ->  | J222: =IF(SUM(J218:J221)>0,SUM(J218:J221),"") ->  | L222: =IF(SUM(L218:L221)>0,SUM(L218:L221),"") -> 
A223: =A218 -> 2 | B223: =B218 -> 1 | C223: Ужин | D223: гор.блюдо
D224: гарнир
D225: напиток
D226: хлеб бел.
D227: хлеб черн.
D230: итого | G230: =IF(SUM(G223:G229)>0,SUM(G223:G229),"") ->  | H230: =IF(SUM(H223:H229)>0,SUM(H223:H229),"") ->  | I230: =IF(SUM(I223:I229)>0,SUM(I223:I229),"") ->  | J230: =IF(SUM(J223:J229)>0,SUM(J223:J229),"") ->  | L230: =IF(SUM(L223:L229)>0,SUM(L223:L229),"") -> 
A231: =A223 -> 2 | B231: =B223 -> 1 | C231: Ужин 2 | D231: напиток
D233: итого | G233: =IF(SUM(G231:G232)>0,SUM(G231:G232),"") ->  | H233: =IF(SUM(H231:H232)>0,SUM(H231:H232),"") ->  | I233: =IF(SUM(I231:I232)>0,SUM(I231:I232),"") ->  | J233: =IF(SUM(J231:J232)>0,SUM(J231:J232),"") ->  | L233: =IF(SUM(L231:L232)>0,SUM(L231:L232),"") -> 
A234: =A197 -> 2 | B234: =B197 -> 1 | C234: Итого за день: | G234: =SUM(G197:G233)/2 -> 54.02 | H234: =SUM(H197:H233)/2 -> 37.03 | I234: =SUM(I197:I233)/2 -> 197.21 | J234: =SUM(J197:J233)/2 -> 1324.304756 | L234: =SUM(L197:L233)/2 -> 294.38
D235: Закуска | E235: Икра из кабачков | F235: 60 | G235: 3.06 | H235: 0.18 | I235: 40.57 | J235: 152.12 | K235: 28/3 | L235: 12.21
A236: 2 | B236: 2 | C236: Завтрак | D236: гор.блюдо | E236: Биточки (котлеты) из мяса свинины | F236: 90 | G236: 11.26 | H236: 18.68 | I236: 10.7 | J236: 256.083903 | K236: 5/9 | L236: 65.01
D237: гор.блюдо | E237: Макаронные изделия отварные | F237: 150 | G237: 5.3 | H237: 2.98 | I237: 34.11 | J237: 183.94 | K237: 46/3 | L237: 18.24
D238: кисломол. | E238: Масло сливочное | F238: 20 | G238: 0.16 | H238: 14.5 | I238: 0.26 | J238: 132.13 | K238: - | L238: 12.69
D239: гор.напиток | E239: Чай с сахаром | F239: 200 | G239: 0.08 | H239: 0.02 | I239: 9.84 | J239: 37.8 | K239: 27/10 | L239: 6
D240: хлеб | E240: Хлеб пшеничный | F240: 30 | G240: 1.98 | H240: 0.2 | I240: 14.07 | J240: 67.1703 | K240: - | L240: 4.8
D241: хлеб | E241: Хлеб ржаной | F241: 20 | G241: 1.32 | H241: 0.24 | I241: 8.34 | J241: 38.68 | K241: - | L241: 3.7
D243: итого | F243: 570 | G243: =IF(SUM(G235:G242)>0,SUM(G235:G242),"") -> 23.16 | H243: =IF(SUM(H235:H242)>0,SUM(H235:H242),"") -> 36.8 | I243: =IF(SUM(I235:I242)>0,SUM(I235:I242),"") -> 117.89 | J243: =IF(SUM(J235:J242)>0,SUM(J235:J242),"") -> 867.924203 | L243: 122.65
A244: =A236 -> 2 | B244: =B236 -> 2 | C244: Завтрак 2 | D244: .
D246: итого | G246: =IF(SUM(G244:G245)>0,SUM(G244:G245),"") ->  | H246: =IF(SUM(H244:H245)>0,SUM(H244:H245),"") ->  | I246: =IF(SUM(I244:I245)>0,SUM(I244:I245),"") ->  | J246: =IF(SUM(J244:J245)>0,SUM(J244:J245),"") ->  | L246: =IF(SUM(L244:L245)>0,SUM(L244:L245),"") -> 
D247: Закуска | E247: Икра из кабачков | F247: 60 | G247: 3.06 | H247: 0.18 | I247: 40.57 | J247: 152.12 | K247: 28/3 | L247: 12.21
A248: =A244 -> 2 | B248: =B244 -> 2 | C248: Обед | D248: кисломол. | E248: Масло сливочное | F248: 20 | G248: 0.16 | H248: 14.5 | I248: 0.26 | J248: 132.13 | K248: - | L248: 12.69
D249: 1 блюдо | E249: Борщ со сметаной | F249: 200 | G249: 1.71 | H249: 4.2 | I249: 10.17 | J249: 82.07 | K249: 2/2 | L249: 49.08
D250: 2 блюдо | E250: Биточки (котлеты) из мяса свинины | F250: 90 | G250: 11.26 | H250: 18.68 | I250: 10.7 | J250: 256.083903 | K250: 5/9 | L250: 65.01
D251: гарнир | E251: Макаронные изделия отварные | F251: 150 | G251: 5.3 | H251: 2.98 | I251: 34.11 | J251: 183.94 | K251: 46/3 | L251: 18.24
D252: напиток | E252: Чай с сахаром | F252: 200 | G252: 0.08 | H252: 0.02 | I252: 9.84 | J252: 37.8 | K252: 27/10 | L252: 6
D253: хлеб бел. | E253: Хлеб пшеничный | F253: 30 | G253: 1.98 | H253: 0.2 | I253: 14.07 | J253: 67.1703 | K253: - | L253: 4.8
D254: хлеб черн. | E254: Хлеб ржаной | F254: 20 | G254: 1.32 | H254: 0.24 | I254: 8.34 | J254: 38.68 | K254: - | L254: 3.7
D257: итого | F257: 770 | G257: =IF(SUM(G247:G256)>0,SUM(G247:G256),"") -> 24.87 | H257: =IF(SUM(H247:H256)>0,SUM(H247:H256),"") -> 41 | I257: =IF(SUM(I247:I256)>0,SUM(I247:I256),"") -> 128.06 | J257: =IF(SUM(J247:J256)>0,SUM(J247:J256),"") -> 949.994203 | L257: =IF(SUM(L247:L256)>0,SUM(L247:L256),"") -> 171.73
A258: =A248 -> 2 | B258: =B248 -> 2 | C258: Полдник | D258: .
D262: итого | G262: =IF(SUM(G258:G261)>0,SUM(G258:G261),"") ->  | H262: =IF(SUM(H258:H261)>0,SUM(H258:H261),"") ->  | I262: =IF(SUM(I258:I261)>0,SUM(I258:I261),"") ->  | J262: =IF(SUM(J258:J261)>0,SUM(J258:J261),"") ->  | L262: =IF(SUM(L258:L261)>0,SUM(L258:L261),"") -> 
A263: =A258 -> 2 | B263: =B258 -> 2 | C263: Ужин | D263: гор.блюдо
D264: гарнир
D265: напиток
D266: хлеб бел.
D267: хлеб черн.
D270: итого | G270: =IF(SUM(G263:G269)>0,SUM(G263:G269),"") ->  | H270: =IF(SUM(H263:H269)>0,SUM(H263:H269),"") ->  | I270: =IF(SUM(I263:I269)>0,SUM(I263:I269),"") ->  | J270: =IF(SUM(J263:J269)>0,SUM(J263:J269),"") ->  | L270: =IF(SUM(L263:L269)>0,SUM(L263:L269),"") -> 
A271: =A263 -> 2 | B271: =B263 -> 2 | C271: Ужин 2 | D271: напиток
D273: итого | G273: =IF(SUM(G271:G272)>0,SUM(G271:G272),"") ->  | H273: =IF(SUM(H271:H272)>0,SUM(H271:H272),"") ->  | I273: =IF(SUM(I271:I272)>0,SUM(I271:I272),"") ->  | J273: =IF(SUM(J271:J272)>0,SUM(J271:J272),"") ->  | L273: =IF(SUM(L271:L272)>0,SUM(L271:L272),"") -> 
A274: =A236 -> 2 | B274: =B236 -> 2 | C274: Итого за день: | G274: =SUM(G236:G273)/2 -> 46.5 | H274: =SUM(H236:H273)/2 -> 77.71 | I274: =SUM(I236:I273)/2 -> 225.665 | J274: =SUM(J236:J273)/2 -> 1741.858406 | L274: =SUM(L236:L273)/2 -> 288.275
... 86 more rows
